fUSD/lending_fUSD_20240620
["ID","MTS","AMOUNT","RATE_DAILY","PERIOD"]
[329939756,1718848265405,-4890.34,0.00013972,2]
[329939757,1718848265417,-1854.72,0.00013972,2]
[329939758,1718848265429,-1022.12,0.00013972,2]
[329939759,1718848265440,-500.0,0.00013972,2]
[329939760,1718848265451,-4320.2,0.00013972,2]
[329939761,1718848265464,-500.0,0.00013972,2]
[329939762,1718848265478,-154.895362,0.00013972,2]
[329939763,1718848265491,-1337.07,0.00013972,2]
[329939764,1718848265504,-2824.15,0.00013972,2]
[329939765,1718848265517,-4595.27,0.00013972,2]
[329939766,1718848265529,-500.0,0.00013972,2]
[329939767,1718848265540,-2302.79,0.00013972,2]
[329939768,1718848265555,-936.74,0.00013972,2]
[329939769,1718848265566,-500.0,0.00013972,2]
[329939770,1718848265577,-2767.6,0.00013972,2]
[329939771,1718848265588,-500.0,0.00013972,2]
[329939772,1718848265601,-10500.28,0.00013972,2]
[329939773,1718848265613,-500.0,0.00013972,2]
[329939774,1718848265624,-500.0,0.00013972,2]
[329939775,1718848265635,-556.32,0.00013972,2]
[329939776,1718848265646,-3156.44,0.00013972,2]
[329939777,1718848265657,-2616.02,0.00013972,2]
[329939778,1718848265668,-1848.51,0.00013972,2]
[329939779,1718848265679,-1098.09,0.00013972,2]
[329939780,1718848265690,-656.83,0.00013972,2]
[329939781,1718848265701,-731.24,0.00013972,2]
[329939782,1718848265712,-1856.49,0.00013972,2]
[329939783,1718848265724,-500.0,0.00013972,2]
[329939784,1718848265735,-153.941423,0.00013972,2]
[329939785,1718848265746,-2756.98,0.00013972,2]
[329939786,1718848265757,-6448.93,0.00013972,2]
[329939787,1718848265768,-2423.26,0.00013972,2]
[329939788,1718848265780,-1692.91,0.00013972,2]
[329939789,1718848265791,-500.0,0.00013972,2]
[329939790,1718848265804,-4030.83,0.00013972,2]
[329939791,1718848265815,-2469.73,0.00013972,2]
[329939792,1718848265826,-1248.55,0.00013972,2]
[329939793,1718848265837,-4919.59,0.00013972,2]
[329939794,1718848265848,-500.0,0.00013972,2]
[329939795,1718848266314,-739.86,0.00013972,2]
[329939796,1718848266355,-620.85,0.00013972,2]
[329939797,1718848266375,-4230.7,0.00013972,2]
[329939798,1718848266385,-6316.12,0.00013972,2]
[329939799,1718848266395,-3904.46,0.00013972,2]
[329939800,1718848266404,-7568.5,0.00013972,2]
[329939801,1718848266414,-1428.07,0.00013972,2]
[329939802,1718848266423,-5256.79,0.00013972,2]
[329939803,1718848266432,-500.0,0.00013972,2]
[329939804,1718848266441,-6762.76,0.00013972,2]
[329939805,1718848266451,-500.0,0.00013972,2]
[329939806,1718848266460,-523.26,0.00013972,2]
[329939807,1718848266474,-701.6,0.00013972,2]
[329939808,1718848266484,-2628.97,0.00013972,2]
[329939809,1718848266493,-500.0,0.00013972,2]
[329939810,1718848266504,-924.08,0.00013972,2]
[329939811,1718848266515,-500.0,0.00013972,2]
[329939812,1718848266525,-617.98,0.00013972,2]
[329939813,1718848266536,-620.36,0.00013972,2]
[329939814,1718848266546,-962.06,0.00013972,2]
[329939815,1718848266559,-7105.77,0.00013972,2]
[329939816,1718848266569,-500.0,0.00013972,2]
[329939817,1718848266579,-4144.56,0.00013972,2]
[329939818,1718848266588,-751.8,0.00013972,2]
[329939819,1718848266598,-500.0,0.00013972,2]
[329939820,1718848266608,-5024.68,0.00013972,2]
[329939821,1718848266617,-500.0,0.00013972,2]
[329939822,1718848266627,-500.0,0.00013972,2]
[329939823,1718848266637,-2081.23,0.00013972,2]
[329939824,1718848266647,-3290.59,0.00013972,2]
[329939825,1718848266656,-504.59,0.00013972,2]
[329939826,1718848266665,-2516.58,0.00013972,2]
[329939827,1718848266675,-886.87,0.00013972,2]
[329939828,1718848266684,-500.0,0.00013972,2]
[329939829,1718848266693,-150089.0,0.00013973,2]
[329939830,1718848266703,-6335.0,0.00013973,2]
[329939831,1718848266712,-3212.0,0.00013973,2]
[329939832,1718848266721,-26827.0,0.00013973,2]
[329939833,1718848266730,-203.825524,0.00013973,2]
[329939834,1718848266740,-157.425801,0.00013973,2]
[329939835,1718848266750,-160.26287,0.00013973,2]
[329939836,1718848266759,-500.0,0.00013973,2]
[329939837,1718848266768,-500.0,0.00013973,2]
[329939838,1718848266777,-161.576388,0.00013973,2]
[329939839,1718848266787,-151.0,0.00013973,2]
[329939840,1718848266796,-151.0,0.00013973,2]
[329939841,1718848266807,-151.0,0.00013973,2]
[329939842,1718848266816,-151.0,0.00013973,2]
[329939843,1718848266826,-150.0,0.00013975,2]
[329939844,1718848266835,-150.0,0.00013976,2]
[329939845,1718848266845,-150.0,0.00013981,2]
[329939846,1718848266854,-150.0,0.00013983,2]
[329939847,1718848266864,-150.0,0.00013987,2]
[329939848,1718848266875,-150.0,0.00013987,2]
[329939849,1718848266884,-155.0,0.00013998,2]
[329939850,1718848266893,-150.0,0.00013998,2]
[329939851,1718848266903,-198.92955654,0.00013999,2]
[329939852,1718848266913,-500.0,0.00013999,2]
[329939853,1718848266922,-500.0,0.00013999,2]
[329939854,1718848266932,-500.0,0.00013999,2]
[329939855,1718848266941,-537.75094335,0.00013999,2]
[329939856,1718848266951,-500.0,0.00013999,2]
[329939857,1718848266960,-515.28146664,0.00013999,2]
[329939858,1718848266970,-155.391988,0.00013999,2]
[329939859,1718848266979,-792.58919894,0.00013999,2]
[329939860,1718848266989,-514.25201011,0.00013999,2]
[329939861,1718848266998,-500.0,0.00013999,2]
[329939862,1718848267008,-500.0,0.00013999,2]
[329939863,1718848267017,-439.24215556,0.00013999,2]
[329939864,1718848267027,-167.51300634,0.00013999,2]
[329939865,1718848267036,-500.0,0.00013999,2]
[329939866,1718848267046,-500.0,0.00013999,2]
[329939867,1718848267059,-500.0,0.00013999,2]
[329939868,1718848267068,-595.36,0.00013999,2]
[329939869,1718848267077,-526.76948181,0.00013999,2]
[329939870,1718848267087,-3588019.77261225,0.00014,2]
[329939871,1718848267097,-39756.24478229,0.00014,2]
[329939872,1718848267699,-2295.80647228,0.00014,2]
[329939873,1718848269780,-500.0,0.00013698,2]
[329939874,1718848269790,-257.50364478,0.00013866,2]
[329939875,1718848269805,-100500.67200789,0.00014,2]
[329939876,1718848269879,-19010.39256726,0.00014,2]
[329939877,1718848269890,-698076.92794252,0.00014,2]
[329939878,1718848269902,-304.80286325,0.00014,2]
[329939879,1718848269914,-2795.46991074,0.00014,2]
[329939880,1718848269926,-353.59476952,0.00014,2]
[329939881,1718848270132,-935.21484251,0.00014,2]
[329939882,1718848270144,-1401.6000012,0.00014,2]
[329939883,1718848271273,-1103.569346,0.000139,2]
[329939884,1718848271285,-10.860818,0.000139,2]
[329939885,1718848271295,-1114.430164,0.00013972,2]
[329939886,1718848271306,-210.28091752,0.00013973,2]
[329939887,1718848271318,-904.14924648,0.00013973,2]
[329939888,1718848271327,-434.86879069,0.00014,2]
[329939891,1718848551247,157.062011,0.00025,73]
[329939892,1718848567912,225.062011,0.00025,74]
[329939893,1718848812556,500.0,0.00024,30]
[329939895,1718849210609,939.1145533,0.00024,30]
[329939899,1718849246315,5400.0,0.00024,30]
[329939901,1718849334556,2000.0,0.00024,30]
[329939923,1718849433495,-217.7714529,0.00010412,2]
[329939924,1718849433505,-324.37705734,0.00010413,2]
[329939925,1718849433514,-150.0,0.00010513,2]
[329939926,1718849433524,-720.53874784,0.00012326,2]
[329939927,1718849433533,-500.0,0.00012328,2]
[329939928,1718849433543,-1543.56,0.00012419,2]
[329939929,1718849433552,-1000.0,0.00012468,2]
[329939930,1718849433561,-250.0,0.0001251,2]
[329939931,1718849433571,-210.25,0.00012559,2]
[329939932,1718849433580,-500.0,0.00012602,2]
[329939933,1718849433592,-872.79045662,0.00012617,2]
[329939934,1718849433601,-500.0,0.00012876,2]
[329939935,1718849433610,-752.17790988,0.00012991,2]
[329939936,1718849433619,-500.0,0.00013,2]
[329939937,1718849433628,-500.0,0.0001315,2]
[329939938,1718849433637,-500.0,0.00013424,2]
[329939939,1718849433647,-872.79045662,0.00013498,2]
[329939940,1718849433658,-500.0,0.000135,2]
[329939941,1718849433668,-600.0,0.00013532,2]
[329939942,1718849433679,-152.82903153,0.00013598,2]
[329939943,1718849433689,-1611.6304,0.00013598,2]
[329939944,1718849433698,-800.0,0.00013671,2]
[329939945,1718849433708,-193.89864152,0.00013696,2]
[329939946,1718849433718,-650.02597108,0.00013696,2]
[329939947,1718849433727,-407.87595665,0.00013696,2]
[329939948,1718849433737,-261.41785168,0.00013696,2]
[329939949,1718849433747,-269.21091807,0.00013696,2]
[329939950,1718849433757,-423.99551214,0.00013696,2]
[329939951,1718849433767,-671.25410559,0.00013696,2]
[329939952,1718849433777,-1043.94311609,0.00013697,2]
[329939953,1718849433787,-264.36784764,0.00013697,2]
[329939954,1718849433797,-500.0,0.00013697,2]
[329939955,1718849433818,-356.85796047,0.00013697,2]
[329939956,1718849433828,-275.04258861,0.00013698,2]
[329939957,1718849433838,-500.0,0.00013698,2]
[329939958,1718849433851,-944.19,0.00013698,2]
[329939959,1718849433862,-501.34093443,0.00013698,2]
[329939960,1718849433872,-502.66936344,0.00013698,2]
[329939961,1718849433881,-200.6329688,0.00013698,2]
[329939962,1718849433894,-503.33000592,0.00013698,2]
[329939963,1718849433904,-609.02032256,0.00013698,2]
[329939964,1718849433914,-500.0,0.00013698,2]
[329939965,1718849433924,-501.29554257,0.00013698,2]
[329939966,1718849433934,-500.0,0.00013698,2]
[329939967,1718849433944,-500.0,0.00013698,2]
[329939968,1718849433954,-500.0,0.00013698,2]
[329939969,1718849433964,-562.51,0.00013698,2]
[329939970,1718849433974,-500.0,0.00013698,2]
[329939971,1718849433984,-500.0,0.00013698,2]
[329939972,1718849433995,-500.0,0.00013698,2]
[329939973,1718849434005,-500.0,0.00013698,2]
[329939974,1718849434016,-500.0,0.00013698,2]
[329939975,1718849434026,-465.00829895,0.00013698,2]
[329939976,1718849434035,-500.0,0.00013698,2]
[329939977,1718849434046,-500.0,0.00013698,2]
[329939978,1718849434057,-500.0,0.00013698,2]
[329939979,1718849434066,-500.0,0.00013698,2]
[329939980,1718849434077,-500.0,0.00013698,2]
[329939981,1718849434088,-500.0,0.00013698,2]
[329939982,1718849434100,-500.0,0.00013698,2]
[329939983,1718849434110,-213.39658106,0.00013698,2]
[329939984,1718849434125,-286.60341894,0.00013698,2]
[329939985,1718849434136,-500.0,0.00013698,2]
[329939986,1718849434146,-318.39658106,0.00013698,2]
[329939987,1718849434159,-181.60341894,0.00013698,2]
[329939988,1718849434169,-71.1793251,0.00013698,2]
[329939989,1718849434181,-276.52,0.00013698,2]
[329939990,1718849434193,-152.3006749,0.00013698,2]
[329939991,1718849434203,-500.0,0.00013698,2]
[329939992,1718849434213,-500.0,0.00013698,2]
[329939993,1718849434223,-545.43957638,0.00013698,2]
[329939994,1718849434232,-245.74974872,0.00013698,2]
[329939995,1718849434245,-254.25025128,0.00013698,2]
[329939996,1718849434255,-393.74974872,0.00013698,2]
[329939997,1718849434268,-106.25025128,0.00013698,2]
[329939998,1718849434278,-500.0,0.00013698,2]
[329939999,1718849434287,-500.0,0.00013698,2]
[329940000,1718849434297,-500.0,0.00013698,2]
[329940001,1718849434307,-500.0,0.00013698,2]
[329940002,1718849434317,-500.0,0.00013698,2]
[329940003,1718849434327,-295.14974872,0.00013698,2]
[329940004,1718849434339,-204.85025128,0.00013698,2]
[329940005,1718849434351,-251.00418872,0.00013698,2]
[329940006,1718849434363,-248.99581128,0.00013698,2]
[329940007,1718849434372,-183.00419272,0.00013698,2]
[329940008,1718849434384,-280.548,0.00013698,2]
[329940009,1718849434396,-36.44780728,0.00013698,2]
[329940010,1718849434405,-517.3286752,0.00013698,2]
[329940011,1718849434415,-560.14,0.00013698,2]
[329940012,1718849434424,-500.0,0.00013698,2]
[329940013,1718849434434,-500.0,0.00013698,2]
[329940014,1718849434443,-500.0,0.00013698,2]
[329940015,1718849434452,-500.0,0.00013698,2]
[329940016,1718849434462,-1473.48,0.00013698,2]
[329940017,1718849434472,-1154.63,0.00013698,2]
[329940018,1718849434481,-500.0,0.00013698,2]
[329940019,1718849434491,-605.35,0.00013698,2]
[329940020,1718849434500,-396.54812896,0.00013698,2]
[329940021,1718849434510,-607.6,0.00013698,2]
[329940022,1718849434520,-215.59533641,0.00013698,2]
[329940023,1718849434647,-322.44466359,0.00013698,2]
[329940024,1718849434657,-1135.49,0.00013698,2]
[329940025,1718849434667,-500.0,0.00013698,2]
[329940026,1718849434676,-1143.33,0.00013698,2]
[329940027,1718849434686,-1211.82,0.00013698,2]
[329940028,1718849434696,-500.0,0.00013698,2]
[329940029,1718849434705,-500.0,0.00013698,2]
[329940030,1718849434715,-536.65,0.00013698,2]
[329940031,1718849434724,-542.26,0.00013698,2]
[329940032,1718849434733,-817.08,0.00013698,2]
[329940033,1718849434743,-527.24,0.00013698,2]
[329940034,1718849434753,-549.74,0.00013698,2]
[329940035,1718849434762,-708.05,0.00013698,2]
[329940036,1718849434772,-719.38,0.00013698,2]
[329940037,1718849434781,-128.88963901,0.00013698,2]
[329940038,1718849434796,-371.11036099,0.00013698,2]
[329940039,1718849434807,-332.67163113,0.00013698,2]
[329940073,1718849439041,-167.32836887,0.00013698,2]
[329940077,1718849439051,-662.48,0.00013698,2]
[329940080,1718849439062,-262.89153113,0.00013698,2]
[329940083,1718849439075,-610.31846887,0.00013698,2]
[329940085,1718849439085,-500.0,0.00013698,2]
[329940087,1718849439095,-414.51719788,0.00013698,2]
[329940089,1718849439108,-85.48280212,0.00013698,2]
[329940091,1718849439118,-612.43,0.00013698,2]
[329940093,1718849439128,-945.80992266,0.00013698,2]
[329940096,1718849439141,-18.13007734,0.00013698,2]
[329940097,1718849439152,-500.0,0.00013698,2]
[329940098,1718849439162,-13.89461869,0.00013698,2]
[329940099,1718849439174,-250.45735865,0.00013698,2]
[329940100,1718849439186,-235.64802266,0.00013698,2]
[329940101,1718849439196,-500.0,0.00013698,2]
[329940102,1718849439207,-500.0,0.00013698,2]
[329940103,1718849439216,-837.05,0.00013698,2]
[329940104,1718849439227,-560.92,0.00013698,2]
[329940105,1718849439237,-500.0,0.00013698,2]
[329940106,1718849439247,-500.0,0.00013698,2]
[329940107,1718849439257,-1091.16,0.00013698,2]
[329940108,1718849439266,-500.0,0.00013698,2]
[329940109,1718849439276,-500.0,0.00013698,2]
[329940110,1718849439286,-500.0,0.00013698,2]
[329940111,1718849439296,-291.73197734,0.00013698,2]
[329940112,1718849439308,-275.86802266,0.00013698,2]
[329940113,1718849439319,-725.39,0.00013698,2]
[329940114,1718849439328,-295.04196704,0.00013698,2]
[329940115,1718849439340,-534.85803296,0.00013698,2]
[329940116,1718849439353,-500.0,0.00013698,2]
[329940117,1718849439363,-553.92,0.00013698,2]
[329940118,1718849439373,-500.0,0.00013698,2]
[329940119,1718849439384,-500.0,0.00013698,2]
[329940120,1718849439394,-199.85948,0.00013698,2]
[329940121,1718849439403,-500.0,0.00013698,2]
[329940122,1718849439413,-879.47,0.00013698,2]
[329940123,1718849439423,-810.39,0.00013698,2]
[329940124,1718849439432,-537.37,0.00013698,2]
[329940125,1718849439442,-500.0,0.00013698,2]
[329940126,1718849439452,-460.93248704,0.00013698,2]
[329940127,1718849439464,-658.54751296,0.00013698,2]
[329940128,1718849439474,-500.0,0.00013698,2]
[329940129,1718849439484,-500.0,0.00013698,2]
[329940130,1718849439493,-378.78426284,0.00013698,2]
[329940131,1718849439505,-121.21573716,0.00013698,2]
[329940132,1718849439515,-204.71230638,0.00013698,2]
[329940133,1718849439526,-1241.71769362,0.00013698,2]
[329940134,1718849439536,-463.68230638,0.00013698,2]
[329940135,1718849439549,-406.72769362,0.00013698,2]
[329940136,1718849439559,-500.0,0.00013698,2]
[329940137,1718849439569,-500.0,0.00013698,2]
[329940138,1718849439579,-500.0,0.00013698,2]
[329940139,1718849439589,-500.0,0.00013698,2]
[329940140,1718849439603,-500.0,0.00013698,2]
[329940141,1718849439613,-502.03277866,0.00013698,2]
[329940142,1718849439623,-623.16,0.00013698,2]
[329940143,1718849439633,-1301.87,0.00013698,2]
[329940144,1718849439643,-1020.75,0.00013698,2]
[329940145,1718849439652,-500.0,0.00013698,2]
[329940146,1718849439662,-859.51,0.00013698,2]
[329940147,1718849439672,-630.82,0.00013698,2]
[329940148,1718849439682,-500.0,0.00013698,2]
[329940149,1718849439692,-1020.19,0.00013698,2]
[329940150,1718849439702,-500.0,0.00013698,2]
[329940151,1718849439712,-1170.69,0.00013698,2]
[329940152,1718849439721,-500.0,0.00013698,2]
[329940153,1718849439731,-504.55812689,0.00013698,2]
[329940154,1718849439740,-461.49140083,0.00013698,2]
[329940155,1718849439754,-38.50859917,0.00013698,2]
[329940156,1718849439763,-500.0,0.00013698,2]
[329940157,1718849439773,-500.0,0.00013698,2]
[329940158,1718849439783,-500.0,0.00013698,2]
[329940159,1718849439793,-500.0,0.00013698,2]
[329940160,1718849439802,-637.02,0.00013698,2]
[329940161,1718849439816,-746.77,0.00013698,2]
[329940162,1718849439826,-1180.71,0.00013698,2]
[329940163,1718849439835,-904.01,0.00013698,2]
[329940164,1718849439846,-508.5756827,0.00013698,2]
[329940165,1718849439857,-506.05145307,0.00013698,2]
[329940166,1718849439867,-662.59,0.00013698,2]
[329940167,1718849439877,-759.41,0.00013698,2]
[329940168,1718849439887,-547.66,0.00013698,2]
[329940169,1718849439897,-500.0,0.00013698,2]
[329940170,1718849439907,-567.39,0.00013698,2]
[329940171,1718849439917,-587.40035019,0.00013698,2]
[329940186,1718849440786,-12462.66925804,0.00013697,2]
[329940187,1718849440796,-419.73964981,0.00013698,2]
[329940188,1718849440810,-500.0,0.00013698,2]
[329940189,1718849440819,-500.0,0.00013698,2]
[329940190,1718849440829,-500.0,0.00013698,2]
[329940191,1718849440839,-1090.41,0.00013698,2]
[329940192,1718849440850,-516.54,0.00013698,2]
[329940193,1718849440859,-500.0,0.00013698,2]
[329940194,1718849440869,-500.0,0.00013698,2]
[329940195,1718849440879,-500.0,0.00013698,2]
[329940196,1718849440889,-504.25815242,0.00013698,2]
[329940197,1718849440899,-500.0,0.00013698,2]
[329940198,1718849440909,-500.0,0.00013698,2]
[329940199,1718849440919,-40857.22,0.00013698,2]
[329940200,1718849440929,-1044.8,0.00013698,2]
[329940201,1718849440939,-500.0,0.00013698,2]
[329940202,1718849440948,-500.0,0.00013698,2]
[329940203,1718849440957,-1171.68,0.00013698,2]
[329940204,1718849440967,-809.95,0.00013698,2]
[329940205,1718849440976,-264.49375558,0.00013698,2]
[329940206,1718849440986,-500.0,0.00013698,2]
[329940207,1718849440995,-745.8,0.00013698,2]
[329940208,1718849441005,-500.0,0.00013698,2]
[329940209,1718849441015,-507.18127464,0.00013698,2]
[329940210,1718849441025,-500.0,0.00013698,2]
[329940211,1718849441035,-505.60205868,0.00013698,2]
[329940212,1718849441044,-569.44693207,0.00013698,2]
[329940213,1718849441057,-51.51306793,0.00013698,2]
[329940214,1718849441067,-500.0,0.00013698,2]
[329940215,1718849441076,-204.43591273,0.00013698,2]
[329940216,1718849441086,-500.0,0.00013698,2]
[329940217,1718849441096,-500.0,0.00013698,2]
[329940218,1718849441106,-1983.36,0.00013698,2]
[329940219,1718849441115,-533.22,0.00013698,2]
[329940220,1718849441125,-535.76,0.00013698,2]
[329940221,1718849441136,-684.84,0.00013698,2]
[329940222,1718849441145,-520.33471828,0.00013698,2]
[329940223,1718849441155,-699.11,0.00013698,2]
[329940224,1718849441165,-643.18,0.00013698,2]
[329940225,1718849441175,-172.19826565,0.00013698,2]
[329940226,1718849441184,-500.0,0.00013698,2]
[329940227,1718849441194,-500.0,0.00013698,2]
[329940228,1718849441204,-500.0,0.00013698,2]
[329940229,1718849441214,-493.0,0.00013698,2]
[329940230,1718849441223,-500.0,0.00013698,2]
[329940231,1718849441233,-2527.23,0.00013698,2]
[329940232,1718849441243,-500.0,0.00013698,2]
[329940233,1718849441253,-500.0,0.00013698,2]
[329940234,1718849441262,-857.76,0.00013698,2]
[329940235,1718849441272,-505.27895808,0.00013698,2]
[329940236,1718849441281,-1011.93,0.00013698,2]
[329940237,1718849441290,-504.80353657,0.00013698,2]
[329940238,1718849441300,-500.0,0.00013698,2]
[329940239,1718849441310,-613.47,0.00013698,2]
[329940240,1718849441320,-503.86933458,0.00013698,2]
[329940241,1718849441329,-1203.81,0.00013698,2]
[329940242,1718849441338,-822.3,0.00013698,2]
[329940243,1718849441348,-512.47635635,0.00013698,2]
[329940244,1718849441357,-689.37,0.00013698,2]
[329940245,1718849441367,-500.0,0.00013698,2]
[329940246,1718849441376,-500.0,0.00013698,2]
[329940247,1718849441386,-743.99,0.00013698,2]
[329940248,1718849441395,-500.0,0.00013698,2]
[329940249,1718849441405,-845.54,0.00013698,2]
[329940250,1718849441414,-897.76,0.00013698,2]
[329940251,1718849441423,-500.0,0.00013698,2]
[329940252,1718849441433,-500.0,0.00013698,2]
[329940253,1718849441442,-500.0,0.00013698,2]
[329940254,1718849441452,-500.0,0.00013698,2]
[329940255,1718849441461,-223.98461245,0.00013698,2]
[329940256,1718849441471,-514.86,0.00013698,2]
[329940257,1718849441480,-837.5,0.00013698,2]
[329940258,1718849441489,-666.63,0.00013698,2]
[329940259,1718849441499,-500.0,0.00013698,2]
[329940260,1718849441508,-500.0,0.00013698,2]
[329940261,1718849441517,-500.0,0.00013698,2]
[329940262,1718849441527,-500.0,0.00013698,2]
[329940263,1718849441536,-528.56,0.00013698,2]
[329940264,1718849441545,-500.0,0.00013698,2]
[329940265,1718849441555,-757.81,0.00013698,2]
[329940266,1718849441564,-500.0,0.00013698,2]
[329940267,1718849441574,-500.0,0.00013698,2]
[329940268,1718849441583,-500.0,0.00013698,2]
[329940269,1718849441592,-500.0,0.00013698,2]
[329940270,1718849441607,-544.48,0.00013698,2]
[329940271,1718849441617,-500.0,0.00013698,2]
[329940272,1718849441626,-622.8,0.00013698,2]
[329940273,1718849441636,-500.0,0.00013698,2]
[329940274,1718849441645,-500.0,0.00013698,2]
[329940275,1718849441654,-164.90410762,0.00013698,2]
[329940276,1718849441664,-656.64,0.00013698,2]
[329940277,1718849441673,-438.85595837,0.00013698,2]
[329940278,1718849441682,-623.66,0.00013698,2]
[329940279,1718849441692,-502.33,0.00013698,2]
[329940280,1718849441705,-500.0,0.00013698,2]
[329940281,1718849441716,-500.0,0.00013698,2]
[329940282,1718849441725,-500.0,0.00013698,2]
[329940283,1718849441735,-500.0,0.00013698,2]
[329940284,1718849441744,-541.89,0.00013698,2]
[329940285,1718849441753,-500.0,0.00013698,2]
[329940286,1718849441763,-500.0,0.00013698,2]
[329940287,1718849441772,-500.0,0.00013698,2]
[329940288,1718849441782,-640.2,0.00013698,2]
[329940289,1718849441791,-504.70652484,0.00013698,2]
[329940290,1718849441803,-641.51644272,0.00013698,2]
[329940291,1718849441814,-1194.19,0.00013698,2]
[329940292,1718849441827,-524.42,0.00013698,2]
[329940293,1718849441836,-948.78,0.00013698,2]
[329940294,1718849441850,-500.0,0.00013698,2]
[329940295,1718849441859,-554.95,0.00013698,2]
[329940296,1718849441869,-500.0,0.00013698,2]
[329940297,1718849441880,-1115.16,0.00013698,2]
[329940298,1718849441890,-500.0,0.00013698,2]
[329940299,1718849441900,-519.01,0.00013698,2]
[329940300,1718849441909,-697.61,0.00013698,2]
[329940301,1718849441919,-500.0,0.00013698,2]
[329940302,1718849441928,-947.64,0.00013698,2]
[329940303,1718849441938,-1407.59,0.00013698,2]
[329940304,1718849441949,-1077.63,0.00013698,2]
[329940305,1718849441958,-500.0,0.00013698,2]
[329940306,1718849441968,-500.0,0.00013698,2]
[329940307,1718849441978,-500.0,0.00013698,2]
[329940308,1718849441988,-263.37544958,0.00013698,2]
[329940309,1718849441997,-556.83,0.00013698,2]
[329940310,1718849442008,-747.63,0.00013698,2]
[329940311,1718849442017,-500.0,0.00013698,2]
[329940312,1718849442026,-500.0,0.00013698,2]
[329940313,1718849442036,-500.0,0.00013698,2]
[329940314,1718849442045,-534.17,0.00013698,2]
[329940315,1718849442054,-500.0,0.00013698,2]
[329940316,1718849442064,-500.0,0.00013698,2]
[329940317,1718849442074,-505.40026365,0.00013698,2]
[329940318,1718849442083,-500.0,0.00013698,2]
[329940319,1718849442093,-500.0,0.00013698,2]
[329940320,1718849442104,-500.0,0.00013698,2]
[329940321,1718849442114,-500.0,0.00013698,2]
[329940322,1718849442124,-381.39,0.00013698,2]
[329940323,1718849442133,-1169.8,0.00013698,2]
[329940324,1718849442143,-500.0,0.00013698,2]
[329940325,1718849442152,-502.48557725,0.00013698,2]
[329940326,1718849442161,-589.95,0.00013698,2]
[329940327,1718849442171,-500.0,0.00013698,2]
[329940328,1718849442180,-1348.86,0.00013698,2]
[329940329,1718849442189,-578.46,0.00013698,2]
[329940330,1718849442199,-589.5,0.00013698,2]
[329940331,1718849442208,-824.69,0.00013698,2]
[329940332,1718849442217,-1254.19,0.00013698,2]
[329940333,1718849442227,-500.0,0.00013698,2]
[329940334,1718849442236,-720.32,0.00013698,2]
[329940335,1718849442245,-500.0,0.00013698,2]
[329940336,1718849442254,-500.0,0.00013698,2]
[329940337,1718849442264,-1158.05,0.00013698,2]
[329940338,1718849442273,-504.65103677,0.00013698,2]
[329940339,1718849442282,-554.4,0.00013698,2]
[329940340,1718849442291,-735.5,0.00013698,2]
[329940341,1718849442300,-508.58626232,0.00013698,2]
[329940342,1718849442310,-500.0,0.00013698,2]
[329940343,1718849442319,-1176.85,0.00013698,2]
[329940344,1718849442329,-500.0,0.00013698,2]